[Event "Late-Titled-Tuesday-Blitz-October-03-2023"]
[Site "Chess.com"]
[Date "2023.10.03"]
[Round "6"]
[White "Marasmus01"]
[Black "StarkyNZ"]
[Result "1-0"]
[WhiteElo "2518"]
[BlackElo "2320"]
[TimeControl "180+1"]
[EndTime "15:02:39 PDT"]
[Termination "Marasmus01 won by resignation"]

1. c4 {[%clk 0:03:00.9]} 1... e5 {[%clk 0:02:57.3]} 2. Nf3 {[%clk 0:02:59]} 2...
Nc6 {[%clk 0:02:56.3]} 3. Nc3 {[%clk 0:02:56.9]} 3... g6 {[%clk 0:02:56.6]} 4.
g3 {[%clk 0:02:56.8]} 4... Bg7 {[%clk 0:02:57.2]} 5. Bg2 {[%clk 0:02:56.9]} 5...
Nge7 {[%clk 0:02:57.8]} 6. O-O {[%clk 0:02:57.1]} 6... O-O {[%clk 0:02:58.5]} 7.
d3 {[%clk 0:02:57]} 7... d6 {[%clk 0:02:55.3]} 8. Rb1 {[%clk 0:02:56.7]} 8... a5
{[%clk 0:02:53.6]} 9. a3 {[%clk 0:02:56.8]} 9... f5 {[%clk 0:02:50.7]} 10. Nb5
{[%clk 0:02:51.2]} 10... Kh8 {[%clk 0:02:47.8]} 11. b4 {[%clk 0:02:49.8]} 11...
axb4 {[%clk 0:02:47.6]} 12. axb4 {[%clk 0:02:48.9]} 12... Bd7 {[%clk 0:02:45.8]}
13. e3 {[%clk 0:02:25.9]} 13... Qc8 {[%clk 0:02:28.5]} 14. Bb2 {[%clk
0:02:17.5]} 14... Na7 {[%clk 0:01:53.3]} 15. Nc3 {[%clk 0:02:09.4]} 15... f4
{[%clk 0:01:45.7]} 16. Ne4 {[%clk 0:02:01.2]} 16... fxe3 {[%clk 0:01:39.6]} 17.
fxe3 {[%clk 0:02:00.4]} 17... Nac6 {[%clk 0:01:36.2]} 18. Qd2 {[%clk 0:01:52.5]}
18... Bg4 {[%clk 0:01:31.8]} 19. Nfg5 {[%clk 0:01:46.1]} 19... Nd8 {[%clk
0:01:22]} 20. Rxf8+ {[%clk 0:01:43.9]} 20... Bxf8 {[%clk 0:01:22.4]} 21. Rf1
{[%clk 0:01:40.2]} 21... Bg7 {[%clk 0:01:15]} 22. Nf6 {[%clk 0:01:39.8]} 22...
h6 {[%clk 0:01:09.6]} 23. Nge4 {[%clk 0:01:31.4]} 23... Qe6 {[%clk 0:00:57.2]}
24. Ne8 {[%clk 0:01:24.9]} 24... Bf5 {[%clk 0:00:35.7]} 25. Nxc7 {[%clk
0:01:22.1]} 25... Qc8 {[%clk 0:00:35.2]} 26. Nxa8 {[%clk 0:01:19.4]} 26... Qxa8
{[%clk 0:00:34.7]} 27. Nxd6 {[%clk 0:01:18.9]} 27... Ne6 {[%clk 0:00:27]} 28. e4
{[%clk 0:01:15.3]} 28... Bg4 {[%clk 0:00:22.8]} 29. h3 {[%clk 0:01:14.5]} 29...
Bh5 {[%clk 0:00:22]} 30. g4 {[%clk 0:01:13.7]} 30... Qd8 {[%clk 0:00:20.4]} 31.
Nf7+ {[%clk 0:01:12.4]} 1-0

[Event "Late-Titled-Tuesday-Blitz-October-03-2023"]
[Site "Chess.com"]
[Date "2023.10.03"]
[Round "6"]
[White "Malev212"]
[Black "fyall777"]
[Result "1-0"]
[WhiteElo "2642"]
[BlackElo "2513"]
[TimeControl "180+1"]
[EndTime "15:02:47 PDT"]
[Termination "Malev212 won on time"]

1. e4 {[%clk 0:02:54.4]} 1... c5 {[%clk 0:02:25.1]} 2. Nf3 {[%clk 0:02:52.7]}
2... e6 {[%clk 0:02:26]} 3. g3 {[%clk 0:02:51.7]} 3... b6 {[%clk 0:02:23]} 4. d4
{[%clk 0:02:49.5]} 4... cxd4 {[%clk 0:02:22.1]} 5. Nxd4 {[%clk 0:02:49.3]} 5...
Bb7 {[%clk 0:02:22.8]} 6. Bg2 {[%clk 0:02:49.4]} 6... Nf6 {[%clk 0:02:21.2]} 7.
Nc3 {[%clk 0:02:44.8]} 7... Bb4 {[%clk 0:02:21]} 8. Qd3 {[%clk 0:02:37]} 8...
O-O {[%clk 0:02:18]} 9. O-O {[%clk 0:02:36.3]} 9... Bxc3 {[%clk 0:02:04.5]} 10.
bxc3 {[%clk 0:02:35]} 10... d5 {[%clk 0:02:05.1]} 11. e5 {[%clk 0:02:29.7]}
11... Ne4 {[%clk 0:02:01.5]} 12. Ba3 {[%clk 0:02:11.6]} 12... Re8 {[%clk
0:01:27.8]} 13. c4 {[%clk 0:02:10.7]} 13... Nd7 {[%clk 0:01:10.8]} 14. cxd5
{[%clk 0:02:05.1]} 14... exd5 {[%clk 0:01:11.1]} 15. f4 {[%clk 0:02:00.9]} 15...
Ndc5 {[%clk 0:01:09.4]} 16. Qe3 {[%clk 0:01:57.9]} 16... Qd7 {[%clk 0:01:07.6]}
17. Bb2 {[%clk 0:01:51.7]} 17... Na4 {[%clk 0:01:05.7]} 18. Rab1 {[%clk
0:01:49.1]} 18... Nxb2 {[%clk 0:01:04.7]} 19. Rxb2 {[%clk 0:01:48.7]} 19... Rac8
{[%clk 0:01:05]} 20. Rb3 {[%clk 0:01:41.9]} 20... Qa4 {[%clk 0:00:59.3]} 21. Ra3
{[%clk 0:01:41.2]} 21... Qc4 {[%clk 0:00:52.9]} 22. Rxa7 {[%clk 0:01:39.7]}
22... Bc6 {[%clk 0:00:38.3]} 23. Bh3 {[%clk 0:01:36.1]} 23... Ra8 {[%clk
0:00:36.7]} 24. Rxa8 {[%clk 0:01:27.3]} 24... Rxa8 {[%clk 0:00:37.6]} 25. e6
{[%clk 0:01:24.6]} 25... fxe6 {[%clk 0:00:32.1]} 26. Bxe6+ {[%clk 0:01:23.4]}
26... Kh8 {[%clk 0:00:32.3]} 27. f5 {[%clk 0:01:22]} 27... Nc3 {[%clk
0:00:27.4]} 28. Nxc6 {[%clk 0:01:18.3]} 28... Qxc6 {[%clk 0:00:23.2]} 29. f6
{[%clk 0:01:18]} 29... Ne4 {[%clk 0:00:23]} 30. fxg7+ {[%clk 0:01:16.4]} 30...
Kxg7 {[%clk 0:00:23.3]} 31. Qd4+ {[%clk 0:01:15.7]} 31... Kg6 {[%clk 0:00:21.8]}
32. Bxd5 {[%clk 0:01:12.8]} 1-0

[Event "Late-Titled-Tuesday-Blitz-October-03-2023"]
[Site "Chess.com"]
[Date "2023.10.03"]
[Round "6"]
[White "louis198"]
[Black "Giorno"]
[Result "1-0"]
[WhiteElo "2628"]
[BlackElo "2504"]
[TimeControl "180+1"]
[EndTime "15:02:51 PDT"]
[Termination "louis198 won by checkmate"]

1. d4 {[%clk 0:02:57.3]} 1... Nf6 {[%clk 0:02:57.3]} 2. Bf4 {[%clk 0:02:55.5]}
2... Nh5 {[%clk 0:02:55.4]} 3. Bg3 {[%clk 0:02:54.6]} 3... Nxg3 {[%clk
0:02:53.1]} 4. hxg3 {[%clk 0:02:54.7]} 4... c5 {[%clk 0:02:53.6]} 5. c3 {[%clk
0:02:54.8]} 5... cxd4 {[%clk 0:02:52.1]} 6. cxd4 {[%clk 0:02:55]} 6... d5 {[%clk
0:02:42.4]} 7. Nc3 {[%clk 0:02:55.4]} 7... Nc6 {[%clk 0:02:42]} 8. e3 {[%clk
0:02:55.8]} 8... g6 {[%clk 0:02:41.9]} 9. Bd3 {[%clk 0:02:56]} 9... Bg7 {[%clk
0:02:41.9]} 10. Nf3 {[%clk 0:02:56.1]} 10... Bg4 {[%clk 0:02:41.2]} 11. Qb3
{[%clk 0:02:53.9]} 11... Bxf3 {[%clk 0:02:38.4]} 12. gxf3 {[%clk 0:02:53.4]}
12... O-O {[%clk 0:02:13.1]} 13. Nxd5 {[%clk 0:02:53.4]} 13... e5 {[%clk
0:02:12.6]} 14. dxe5 {[%clk 0:02:42.5]} 14... Qa5+ {[%clk 0:02:02.7]} 15. Kf1
{[%clk 0:02:42]} 15... Nxe5 {[%clk 0:02:02]} 16. Be4 {[%clk 0:02:37.2]} 16...
Kh8 {[%clk 0:01:56.9]} 17. f4 {[%clk 0:02:35.5]} 17... Nd7 {[%clk 0:01:50.1]}
18. Bf3 {[%clk 0:02:33.4]} 18... Nc5 {[%clk 0:01:46.6]} 19. Qc2 {[%clk
0:02:33.9]} 19... Rac8 {[%clk 0:01:40.7]} 20. b4 {[%clk 0:02:25.2]} 20... Qa3
{[%clk 0:01:34.5]} 21. Rc1 {[%clk 0:02:21.6]} 21... Nb3 {[%clk 0:01:22.4]} 22.
Qxc8 {[%clk 0:02:20.6]} 22... Nxc1 {[%clk 0:01:21.2]} 23. Qxb7 {[%clk
0:01:44.2]} 23... Qxa2 {[%clk 0:01:11.4]} 24. Qc6 {[%clk 0:00:47.8]} 24... Qd2
{[%clk 0:00:54.9]} 25. Kg2 {[%clk 0:00:47.5]} 25... Nd3 {[%clk 0:00:54.4]} 26.
Rf1 {[%clk 0:00:47.7]} 26... Ne1+ {[%clk 0:00:52.6]} 27. Rxe1 {[%clk 0:00:47.6]}
27... Qxe1 {[%clk 0:00:53.5]} 28. b5 {[%clk 0:00:47.9]} 28... Qa5 {[%clk
0:00:52]} 29. e4 {[%clk 0:00:48.5]} 29... Bd4 {[%clk 0:00:40.6]} 30. e5 {[%clk
0:00:48.2]} 30... Qd2 {[%clk 0:00:38.5]} 31. Qf6+ {[%clk 0:00:48.6]} 31... Kg8
{[%clk 0:00:36.2]} 32. Ne7# {[%clk 0:00:47.8]} 1-0

[Event "Late-Titled-Tuesday-Blitz-October-03-2023"]
[Site "Chess.com"]
[Date "2023.10.03"]
[Round "6"]
[White "Njal28"]
[Black "NMJeevanK"]
[Result "1-0"]
[WhiteElo "3087"]
[BlackElo "2561"]
[TimeControl "180+1"]
[EndTime "15:02:52 PDT"]
[Termination "Njal28 won by resignation"]

1. d4 {[%clk 0:03:00.9]} 1... d6 {[%clk 0:03:00.1]} 2. e4 {[%clk 0:03:00.3]}
2... Nf6 {[%clk 0:03:00.1]} 3. Nc3 {[%clk 0:03:00.6]} 3... e5 {[%clk 0:03:00.6]}
4. Nf3 {[%clk 0:03:00.2]} 4... Nbd7 {[%clk 0:03:00.8]} 5. Bc4 {[%clk 0:03:00.7]}
5... Be7 {[%clk 0:03:01.5]} 6. O-O {[%clk 0:02:59.4]} 6... O-O {[%clk
0:03:02.2]} 7. Re1 {[%clk 0:02:59.8]} 7... a6 {[%clk 0:03:02.1]} 8. a4 {[%clk
0:02:58.6]} 8... b6 {[%clk 0:03:02.5]} 9. Bg5 {[%clk 0:02:53.6]} 9... Bb7 {[%clk
0:02:57.2]} 10. Bb3 {[%clk 0:02:42.3]} 10... c6 {[%clk 0:02:52.2]} 11. Qd2
{[%clk 0:02:32.1]} 11... Qc7 {[%clk 0:02:45.1]} 12. Rad1 {[%clk 0:02:28.4]}
12... Rfe8 {[%clk 0:02:31.3]} 13. dxe5 {[%clk 0:02:24.6]} 13... dxe5 {[%clk
0:02:22.2]} 14. Bxf6 {[%clk 0:01:30.1]} 14... Nxf6 {[%clk 0:02:20.6]} 15. Ng5
{[%clk 0:01:30.5]} 15... Rf8 {[%clk 0:02:20.4]} 16. Qe2 {[%clk 0:01:31]} 16...
Bc8 {[%clk 0:01:51.4]} 17. Qc4 {[%clk 0:01:25]} 17... Bc5 {[%clk 0:01:15]} 18.
Nxf7 {[%clk 0:01:23.2]} 18... Rxf7 {[%clk 0:01:02.5]} 19. Qxf7+ {[%clk
0:01:03.3]} 19... Qxf7 {[%clk 0:01:03.4]} 20. Rd8+ {[%clk 0:01:02]} 20... Bf8
{[%clk 0:01:03]} 21. Bxf7+ {[%clk 0:01:00.7]} 21... Kxf7 {[%clk 0:01:03.9]} 22.
Red1 {[%clk 0:00:48.6]} 22... Bb4 {[%clk 0:00:48.3]} 23. Rh8 {[%clk 0:00:38.9]}
23... Bf8 {[%clk 0:00:18.6]} 24. Rd8 {[%clk 0:00:35.8]} 24... Bb7 {[%clk
0:00:18.7]} 25. Rhxf8+ {[%clk 0:00:35.2]} 1-0

[Event "Late-Titled-Tuesday-Blitz-October-03-2023"]
[Site "Chess.com"]
[Date "2023.10.03"]
[Round "6"]
[White "Vaathi_Coming"]
[Black "biostatistician"]
[Result "1-0"]
[WhiteElo "2892"]
[BlackElo "2637"]
[TimeControl "180+1"]
[EndTime "15:02:56 PDT"]
[Termination "Vaathi_Coming won by resignation"]

1. Nf3 {[%clk 0:02:59.4]} 1... Nf6 {[%clk 0:02:59.9]} 2. e3 {[%clk 0:02:58.6]}
2... g6 {[%clk 0:02:58.8]} 3. b3 {[%clk 0:02:58.1]} 3... Bg7 {[%clk 0:02:59.7]}
4. Bb2 {[%clk 0:02:59]} 4... O-O {[%clk 0:03:00]} 5. Be2 {[%clk 0:02:59.3]} 5...
b6 {[%clk 0:03:00.6]} 6. O-O {[%clk 0:02:59.7]} 6... Bb7 {[%clk 0:03:01.2]} 7.
c4 {[%clk 0:03:00.4]} 7... c5 {[%clk 0:03:01]} 8. Nc3 {[%clk 0:03:00.7]} 8... d5
{[%clk 0:03:01.1]} 9. Nxd5 {[%clk 0:02:57.9]} 9... Nxd5 {[%clk 0:03:02]} 10.
Bxg7 {[%clk 0:02:58]} 10... Kxg7 {[%clk 0:03:02]} 11. cxd5 {[%clk 0:02:58.7]}
11... Qxd5 {[%clk 0:03:02.9]} 12. d4 {[%clk 0:02:58.7]} 12... Nc6 {[%clk
0:02:58.4]} 13. dxc5 {[%clk 0:02:56.2]} 13... Qxc5 {[%clk 0:02:59.3]} 14. Rc1
{[%clk 0:02:47.8]} 14... Qf5 {[%clk 0:02:27.6]} 15. Nd4 {[%clk 0:02:21.6]} 15...
Nxd4 {[%clk 0:02:17.4]} 16. Qxd4+ {[%clk 0:02:22.5]} 16... e5 {[%clk 0:02:17.9]}
17. Qg4 {[%clk 0:02:21]} 17... Qxg4 {[%clk 0:02:10.1]} 18. Bxg4 {[%clk
0:02:21.9]} 18... f5 {[%clk 0:02:10.8]} 19. Be2 {[%clk 0:02:21.8]} 19... Rac8
{[%clk 0:02:09]} 20. f3 {[%clk 0:02:21.6]} 20... Kf6 {[%clk 0:02:04.6]} 21. Rfd1
{[%clk 0:02:17.5]} 21... f4 {[%clk 0:01:47.4]} 22. Kf2 {[%clk 0:02:14.8]} 22...
g5 {[%clk 0:01:44.6]} 23. Rxc8 {[%clk 0:02:05]} 23... Rxc8 {[%clk 0:01:38.9]}
24. Rd7 {[%clk 0:02:04.5]} 24... Bc6 {[%clk 0:01:20.5]} 25. Rxa7 {[%clk
0:01:49.3]} 25... h5 {[%clk 0:01:18.4]} 26. Ra6 {[%clk 0:01:39.4]} 26... Rb8
{[%clk 0:01:18]} 27. a4 {[%clk 0:01:37.1]} 27... Ke6 {[%clk 0:01:05.7]} 28. Ra7
{[%clk 0:01:31.3]} 28... Bd5 {[%clk 0:01:03]} 29. b4 {[%clk 0:01:26.7]} 29...
Rc8 {[%clk 0:00:57.2]} 30. Ra6 {[%clk 0:01:25.9]} 30... Rc2 {[%clk 0:00:54.3]}
31. Rxb6+ {[%clk 0:01:25.3]} 31... Ke7 {[%clk 0:00:51.7]} 32. Rb5 {[%clk
0:01:13.4]} 32... Bc4 {[%clk 0:00:45.1]} 33. Rxe5+ {[%clk 0:01:13.3]} 33... Kd6
{[%clk 0:00:39.2]} 34. exf4 {[%clk 0:01:14.2]} 34... gxf4 {[%clk 0:00:39.3]} 35.
Re4 {[%clk 0:01:14.1]} 35... Bb3 {[%clk 0:00:23.9]} 36. a5 {[%clk 0:01:11.7]}
36... Ra2 {[%clk 0:00:19.8]} 37. Rxf4 {[%clk 0:01:11.4]} 37... Bd1 {[%clk
0:00:14.6]} 38. Rd4+ {[%clk 0:01:11.3]} 1-0

[Event "Late-Titled-Tuesday-Blitz-October-03-2023"]
[Site "Chess.com"]
[Date "2023.10.03"]
[Round "6"]
[White "acertijo08"]
[Black "talaicito"]
[Result "1-0"]
[WhiteElo "2339"]
[BlackElo "2175"]
[TimeControl "180+1"]
[EndTime "15:02:57 PDT"]
[Termination "acertijo08 won on time"]

1. e4 {[%clk 0:03:00.9]} 1... c5 {[%clk 0:02:57.5]} 2. Nf3 {[%clk 0:03:00.8]}
2... d6 {[%clk 0:02:57.6]} 3. d4 {[%clk 0:03:01.4]} 3... cxd4 {[%clk 0:02:58.5]}
4. Nxd4 {[%clk 0:03:01.9]} 4... Nf6 {[%clk 0:02:59.1]} 5. Nc3 {[%clk 0:03:02.5]}
5... g6 {[%clk 0:03:00]} 6. Be3 {[%clk 0:03:02.3]} 6... Bg7 {[%clk 0:03:00.4]}
7. f3 {[%clk 0:03:02.7]} 7... O-O {[%clk 0:03:01.1]} 8. Qd2 {[%clk 0:03:03.2]}
8... Nc6 {[%clk 0:03:01.5]} 9. Bc4 {[%clk 0:03:02.5]} 9... Bd7 {[%clk
0:02:59.4]} 10. O-O-O {[%clk 0:03:02.5]} 10... Rc8 {[%clk 0:02:58.4]} 11. Bb3
{[%clk 0:03:02.8]} 11... Nxd4 {[%clk 0:02:58.7]} 12. Bxd4 {[%clk 0:03:02.8]}
12... b5 {[%clk 0:02:59.6]} 13. g4 {[%clk 0:02:59.4]} 13... a5 {[%clk
0:02:54.4]} 14. a4 {[%clk 0:02:58.1]} 14... bxa4 {[%clk 0:02:51.7]} 15. Nxa4
{[%clk 0:02:55.6]} 15... Bxa4 {[%clk 0:02:51.1]} 16. Bxa4 {[%clk 0:02:55.6]}
16... Rc4 {[%clk 0:02:51.1]} 17. Bb3 {[%clk 0:02:48.6]} 17... Nxe4 {[%clk
0:02:50.9]} 18. Qe3 {[%clk 0:02:37.2]} 18... Bxd4 {[%clk 0:02:35.4]} 19. Rxd4
{[%clk 0:02:34.1]} 19... Rxd4 {[%clk 0:02:35.3]} 20. Qxd4 {[%clk 0:02:35]} 20...
Nc5 {[%clk 0:02:34.9]} 21. Bc4 {[%clk 0:02:26.5]} 21... Qb6 {[%clk 0:02:34.2]}
22. Kb1 {[%clk 0:02:17.2]} 22... Rb8 {[%clk 0:02:29.2]} 23. h4 {[%clk
0:02:13.4]} 23... e5 {[%clk 0:02:25.9]} 24. Qc3 {[%clk 0:02:12.8]} 24... Na4
{[%clk 0:02:24.9]} 25. Qb3 {[%clk 0:02:12.9]} 25... Nc5 {[%clk 0:00:55.3]} 26.
Bxf7+ {[%clk 0:02:08.8]} 26... Kg7 {[%clk 0:00:52.9]} 27. Qxb6 {[%clk
0:02:06.6]} 27... Rxb6 {[%clk 0:00:52.7]} 28. Bd5 {[%clk 0:02:05.4]} 28... Na4
{[%clk 0:00:49.6]} 29. Bb3 {[%clk 0:02:01.9]} 29... Nc5 {[%clk 0:00:48.6]} 30.
Bc4 {[%clk 0:02:01.2]} 30... Rb4 {[%clk 0:00:47.5]} 31. b3 {[%clk 0:01:59.6]}
31... Kf6 {[%clk 0:00:34.4]} 32. h5 {[%clk 0:01:51.1]} 32... g5 {[%clk
0:00:30.4]} 33. Rd1 {[%clk 0:01:51]} 33... Ke7 {[%clk 0:00:27.9]} 34. h6 {[%clk
0:01:51.3]} 34... a4 {[%clk 0:00:22.7]} 35. Kb2 {[%clk 0:01:50.5]} 35... axb3
{[%clk 0:00:20.6]} 36. cxb3 {[%clk 0:01:50.8]} 36... Ne6 {[%clk 0:00:19.8]} 37.
Kc3 {[%clk 0:01:45.5]} 37... Rb7 {[%clk 0:00:20]} 38. Bxe6 {[%clk 0:01:42.7]}
38... Kxe6 {[%clk 0:00:19.8]} 39. Ra1 {[%clk 0:01:40.5]} 39... Kd5 {[%clk
0:00:08.8]} 40. Ra5+ {[%clk 0:01:38.2]} 40... Ke6 {[%clk 0:00:08.7]} 41. Ra8
{[%clk 0:01:37.6]} 41... Kf6 {[%clk 0:00:06.2]} 42. Rd8 {[%clk 0:01:36.3]} 42...
Ke6 {[%clk 0:00:01.5]} 43. b4 {[%clk 0:01:35.9]} 43... d5 {[%clk 0:00:01.1]} 44.
Re8+ {[%clk 0:01:32.7]} 1-0

[Event "Late-Titled-Tuesday-Blitz-October-03-2023"]
[Site "Chess.com"]
[Date "2023.10.03"]
[Round "6"]
[White "Alina_Gumerovna"]
[Black "Bala-Afiada"]
[Result "1-0"]
[WhiteElo "2112"]
[BlackElo "1922"]
[TimeControl "180+1"]
[EndTime "15:03:16 PDT"]
[Termination "Alina_Gumerovna won by checkmate"]

1. e4 {[%clk 0:02:50.2]} 1... c5 {[%clk 0:02:59.7]} 2. c4 {[%clk 0:02:47.9]}
2... Nc6 {[%clk 0:02:57.1]} 3. Nc3 {[%clk 0:02:47.7]} 3... e6 {[%clk 0:02:56.1]}
4. g3 {[%clk 0:02:47.7]} 4... Nge7 {[%clk 0:02:56.1]} 5. Bg2 {[%clk 0:02:48.1]}
5... Nd4 {[%clk 0:02:55.6]} 6. d3 {[%clk 0:02:47.8]} 6... Nec6 {[%clk
0:02:55.7]} 7. Nge2 {[%clk 0:02:48.3]} 7... g6 {[%clk 0:02:53.8]} 8. O-O {[%clk
0:02:48.7]} 8... Bg7 {[%clk 0:02:54.1]} 9. Be3 {[%clk 0:02:47.4]} 9... O-O
{[%clk 0:02:53.5]} 10. Qd2 {[%clk 0:02:42.6]} 10... d6 {[%clk 0:02:45]} 11. Bh6
{[%clk 0:02:38.6]} 11... f5 {[%clk 0:02:19.9]} 12. Bxg7 {[%clk 0:02:37.8]} 12...
Kxg7 {[%clk 0:02:20.8]} 13. exf5 {[%clk 0:02:34.1]} 13... Rxf5 {[%clk
0:02:14.8]} 14. f4 {[%clk 0:02:24.7]} 14... Qf6 {[%clk 0:02:03.1]} 15. Ne4
{[%clk 0:02:24.2]} 15... Nxe2+ {[%clk 0:01:55.6]} 16. Qxe2 {[%clk 0:02:21.4]}
16... Qd4+ {[%clk 0:01:56.3]} 17. Kh1 {[%clk 0:02:20.4]} 17... Bd7 {[%clk
0:01:53.1]} 18. Rae1 {[%clk 0:01:53.6]} 18... Raf8 {[%clk 0:01:51.7]} 19. Bh3
{[%clk 0:01:48.9]} 19... Rh5 {[%clk 0:01:37.1]} 20. Bg4 {[%clk 0:01:38]} 20...
Rh6 {[%clk 0:01:29.6]} 21. Ng5 {[%clk 0:01:35.6]} 21... Nd8 {[%clk 0:01:13.2]}
22. Bxe6 {[%clk 0:01:26.6]} 22... Bc6+ {[%clk 0:01:04.5]} 23. Bd5 {[%clk
0:01:11.4]} 23... Bxd5+ {[%clk 0:01:00.3]} 24. cxd5 {[%clk 0:01:11.3]} 24...
Qxd5+ {[%clk 0:01:00]} 25. Qe4 {[%clk 0:01:11.8]} 25... Qxe4+ {[%clk 0:00:40.7]}
26. Nxe4 {[%clk 0:01:08.4]} 26... Nf7 {[%clk 0:00:36.5]} 27. Kg2 {[%clk
0:00:58.9]} 27... b6 {[%clk 0:00:33.8]} 28. Nc3 {[%clk 0:00:57.9]} 28... Rh5
{[%clk 0:00:16.8]} 29. Re7 {[%clk 0:00:57.4]} 29... Rf5 {[%clk 0:00:15.1]} 30.
Rxa7 {[%clk 0:00:55.8]} 30... Kf6 {[%clk 0:00:15.5]} 31. Ne4+ {[%clk 0:00:55.4]}
31... Ke6 {[%clk 0:00:11.3]} 32. Ra6 {[%clk 0:00:51.1]} 32... Kd5 {[%clk
0:00:10.1]} 33. Rxb6 {[%clk 0:00:49.2]} 33... Nh6 {[%clk 0:00:10.1]} 34. Rxd6#
{[%clk 0:00:45.5]} 1-0

[Event "Late-Titled-Tuesday-Blitz-October-03-2023"]
[Site "Chess.com"]
[Date "2023.10.03"]
[Round "6"]
[White "vanyakuba"]
[Black "Triumphmate"]
[Result "0-1"]
[WhiteElo "2372"]
[BlackElo "2505"]
[TimeControl "180+1"]
[EndTime "15:03:17 PDT"]
[Termination "Triumphmate won on time"]

1. e4 {[%clk 0:03:00.9]} 1... d5 {[%clk 0:02:53]} 2. exd5 {[%clk 0:03:00.6]}
2... Nf6 {[%clk 0:02:44.8]} 3. c4 {[%clk 0:03:00]} 3... c6 {[%clk 0:02:44.7]} 4.
d4 {[%clk 0:03:00.1]} 4... cxd5 {[%clk 0:02:39.8]} 5. Nc3 {[%clk 0:02:59.9]}
5... Nc6 {[%clk 0:02:39.1]} 6. Bg5 {[%clk 0:02:59.5]} 6... Bg4 {[%clk
0:02:38.2]} 7. f3 {[%clk 0:02:35.7]} 7... Bf5 {[%clk 0:02:34.7]} 8. a3 {[%clk
0:02:34]} 8... e6 {[%clk 0:02:34.3]} 9. c5 {[%clk 0:02:29.2]} 9... Be7 {[%clk
0:02:33.9]} 10. b4 {[%clk 0:02:28.4]} 10... a6 {[%clk 0:02:32.4]} 11. b5 {[%clk
0:01:56.4]} 11... axb5 {[%clk 0:02:27.6]} 12. Bxb5 {[%clk 0:01:55.5]} 12... O-O
{[%clk 0:02:28.1]} 13. Nge2 {[%clk 0:01:54.2]} 13... Qa5 {[%clk 0:02:23.9]} 14.
O-O {[%clk 0:01:44]} 14... Rfc8 {[%clk 0:02:21.6]} 15. g4 {[%clk 0:01:27.8]}
15... Nxd4 {[%clk 0:02:19.2]} 16. Nxd4 {[%clk 0:01:13.4]} 16... Qxc3 {[%clk
0:02:18]} 17. Rc1 {[%clk 0:01:02.7]} 17... Qxa3 {[%clk 0:02:14.3]} 18. gxf5
{[%clk 0:01:01.4]} 18... e5 {[%clk 0:02:11.4]} 19. Nb3 {[%clk 0:00:51.8]} 19...
Bxc5+ {[%clk 0:02:05.3]} 20. Kh1 {[%clk 0:00:43.8]} 20... Be7 {[%clk 0:01:27.7]}
21. Bxf6 {[%clk 0:00:41.7]} 21... Bxf6 {[%clk 0:01:28.6]} 22. Qxd5 {[%clk
0:00:41.5]} 22... Rxc1 {[%clk 0:01:25.5]} 23. Rxc1 {[%clk 0:00:36.1]} 23... Rd8
{[%clk 0:01:25.5]} 24. Qc4 {[%clk 0:00:25.1]} 24... h6 {[%clk 0:01:23.8]} 25.
Kg2 {[%clk 0:00:12.8]} 25... Qb2+ {[%clk 0:01:12.1]} 26. Qc2 {[%clk 0:00:10.9]}
26... Qa3 {[%clk 0:01:12.1]} 27. Qc4 {[%clk 0:00:11.2]} 27... Bg5 {[%clk
0:01:08.5]} 28. Rc2 {[%clk 0:00:10.4]} 28... Rd1 {[%clk 0:01:07]} 29. Re2 {[%clk
0:00:04.7]} 29... Qd6 {[%clk 0:01:05.4]} 30. Nc5 {[%clk 0:00:03.8]} 30... Qb6
{[%clk 0:01:04.9]} 31. Rf2 {[%clk 0:00:01.9]} 31... Be3 {[%clk 0:01:04.4]} 32.
Rc2 {[%clk 0:00:02.6]} 32... Rg1+ {[%clk 0:01:02.7]} 33. Kh3 {[%clk 0:00:02.6]}
33... Qf6 {[%clk 0:01:02.5]} 34. Qe4 {[%clk 0:00:01.8]} 34... Qg5 {[%clk
0:00:59.3]} 35. Nd7 {[%clk 0:00:01.6]} 35... Qg2+ {[%clk 0:00:55.9]} 0-1

[Event "Late-Titled-Tuesday-Blitz-October-03-2023"]
[Site "Chess.com"]
[Date "2023.10.03"]
[Round "6"]
[White "Ali_rastbod"]
[Black "angryspacevoid"]
[Result "1-0"]
[WhiteElo "2712"]
[BlackElo "2541"]
[TimeControl "180+1"]
[EndTime "15:03:20 PDT"]
[Termination "Ali_rastbod won by checkmate"]

1. e4 {[%clk 0:02:45.5]} 1... c5 {[%clk 0:02:56.4]} 2. Nf3 {[%clk 0:02:45.8]}
2... a6 {[%clk 0:02:56.1]} 3. c3 {[%clk 0:02:42.7]} 3... Nf6 {[%clk 0:02:53.4]}
4. e5 {[%clk 0:02:42.7]} 4... Nd5 {[%clk 0:02:53.9]} 5. d4 {[%clk 0:02:43.4]}
5... cxd4 {[%clk 0:02:53.9]} 6. Bc4 {[%clk 0:02:28.1]} 6... e6 {[%clk
0:02:44.5]} 7. Bxd5 {[%clk 0:02:19.9]} 7... exd5 {[%clk 0:02:44.3]} 8. Qxd4
{[%clk 0:02:20]} 8... d6 {[%clk 0:02:32.8]} 9. Qxd5 {[%clk 0:02:16.5]} 9... Nc6
{[%clk 0:02:29.8]} 10. exd6 {[%clk 0:02:12]} 10... Bxd6 {[%clk 0:02:21.2]} 11.
Bg5 {[%clk 0:01:51.1]} 11... Qc7 {[%clk 0:01:47.8]} 12. O-O {[%clk 0:01:45.1]}
12... O-O {[%clk 0:01:46.8]} 13. Nbd2 {[%clk 0:01:43.7]} 13... Bg4 {[%clk
0:01:41.4]} 14. h3 {[%clk 0:01:43]} 14... Bh5 {[%clk 0:01:33.5]} 15. Rfe1 {[%clk
0:01:16.8]} 15... Rfe8 {[%clk 0:01:31.4]} 16. Bh4 {[%clk 0:01:13.5]} 16... Bg6
{[%clk 0:01:21.7]} 17. Nc4 {[%clk 0:01:13.5]} 17... Bf4 {[%clk 0:01:12.5]} 18.
Rad1 {[%clk 0:01:12.5]} 18... h6 {[%clk 0:01:02.7]} 19. Rxe8+ {[%clk 0:01:03.3]}
19... Rxe8 {[%clk 0:01:01.8]} 20. Re1 {[%clk 0:01:04.2]} 20... Rxe1+ {[%clk
0:00:59.4]} 21. Nxe1 {[%clk 0:01:05.1]} 21... Qc8 {[%clk 0:00:47]} 22. Bg3
{[%clk 0:00:58.6]} 22... Bxg3 {[%clk 0:00:44.8]} 23. fxg3 {[%clk 0:00:59.5]}
23... Qe8 {[%clk 0:00:44.9]} 24. Kf2 {[%clk 0:00:57.9]} 24... Qe7 {[%clk
0:00:39.4]} 25. Nf3 {[%clk 0:00:52.4]} 25... Qc7 {[%clk 0:00:27.2]} 26. Qd6
{[%clk 0:00:52]} 26... Qc8 {[%clk 0:00:26.3]} 27. g4 {[%clk 0:00:48.4]} 27...
Bb1 {[%clk 0:00:21.4]} 28. a3 {[%clk 0:00:47.3]} 28... Ba2 {[%clk 0:00:20.4]}
29. Nce5 {[%clk 0:00:44.9]} 29... Nd8 {[%clk 0:00:16.1]} 30. Qe7 {[%clk
0:00:40]} 30... Be6 {[%clk 0:00:14.3]} 31. g5 {[%clk 0:00:35.3]} 31... hxg5
{[%clk 0:00:09.7]} 32. Nxg5 {[%clk 0:00:35.2]} 32... f6 {[%clk 0:00:09]} 33.
Qe8# {[%clk 0:00:34.8]} 1-0